[Event "*** Titled Tuesday Blitz"]
[Site "Chess.com"]
[Date "2018.07.03"]
[Round "7"]
[White "QDcoach"]
[Black "Genghis_K"]
[Result "0-1"]
[WhiteElo "2657"]
[BlackElo "2712"]
[TimeControl "180+2"]
[EndTime "14:31:11 PDT"]
[Termination "Genghis_K won by resignation"]

1. d4 {[%clk 0:03:01.9]} 1... Nf6 {[%clk 0:03:00.8]} 2. c4 {[%clk 0:03:02.9]}
2... g6 {[%clk 0:03:02.4]} 3. g3 {[%clk 0:03:03.5]} 3... Bg7 {[%clk 0:03:03.8]}
4. Bg2 {[%clk 0:03:00]} 4... O-O {[%clk 0:03:05.3]} 5. Nc3 {[%clk 0:03:01]} 5...
d6 {[%clk 0:03:05.8]} 6. Nf3 {[%clk 0:03:02.1]} 6... Nbd7 {[%clk 0:03:07.1]} 7.
O-O {[%clk 0:03:02.9]} 7... e5 {[%clk 0:03:08.7]} 8. e4 {[%clk 0:03:03.4]} 8...
exd4 {[%clk 0:03:09.2]} 9. Nxd4 {[%clk 0:03:04.2]} 9... Re8 {[%clk 0:03:10.8]}
10. f3 {[%clk 0:03:05.3]} 10... a6 {[%clk 0:03:08.6]} 11. a4 {[%clk 0:03:01.5]}
11... Ne5 {[%clk 0:03:06.7]} 12. b3 {[%clk 0:03:01.2]} 12... Bd7 {[%clk
0:03:07.3]} 13. Nde2 {[%clk 0:02:56.4]} 13... Rb8 {[%clk 0:03:07.2]} 14. a5
{[%clk 0:02:42.5]} 14... Nc6 {[%clk 0:02:33.6]} 15. Be3 {[%clk 0:02:24.4]} 15...
h5 {[%clk 0:02:31.3]} 16. Qd2 {[%clk 0:02:22.9]} 16... h4 {[%clk 0:02:31.5]} 17.
Bg5 {[%clk 0:02:23.6]} 17... hxg3 {[%clk 0:02:31.6]} 18. hxg3 {[%clk 0:02:24.3]}
18... Be6 {[%clk 0:02:30.6]} 19. Nf4 {[%clk 0:02:15.7]} 19... Qd7 {[%clk
0:02:30.9]} 20. Nxe6 {[%clk 0:02:14.4]} 20... Qxe6 {[%clk 0:02:30.3]} 21. Nd5
{[%clk 0:02:14.4]} 21... Rbc8 {[%clk 0:02:28.1]} 22. Bxf6 {[%clk 0:01:44.1]}
22... Bxf6 {[%clk 0:02:26.8]} 23. Bh3 {[%clk 0:01:45.3]} 23... Qxh3 {[%clk
0:02:00.5]} 24. Nxf6+ {[%clk 0:01:45.7]} 24... Kf8 {[%clk 0:02:01.1]} 25. Nxe8
{[%clk 0:01:42.3]} 25... Qxg3+ {[%clk 0:02:01.7]} 26. Qg2 {[%clk 0:01:42.9]}
26... Qf4 {[%clk 0:01:52.5]} 27. Qh2 {[%clk 0:01:23.6]} 27... Qe3+ {[%clk
0:01:47.3]} 28. Qf2 {[%clk 0:01:12]} 28... Qg5+ {[%clk 0:01:48]} 29. Qg2 {[%clk
0:01:12.7]} 29... Qc5+ {[%clk 0:01:29.2]} 30. Qf2 {[%clk 0:01:11]} 30... Nd4
{[%clk 0:01:24.1]} 31. Kg2 {[%clk 0:00:57.6]} 31... Rxe8 {[%clk 0:01:06.6]} 32.
b4 {[%clk 0:00:58]} 32... Qg5+ {[%clk 0:00:43.2]} 33. Qg3 {[%clk 0:00:58.7]}
33... Qd2+ {[%clk 0:00:44.5]} 34. Rf2 {[%clk 0:00:50]} 34... Qxb4 {[%clk
0:00:39.6]} 35. Rh1 {[%clk 0:00:46.8]} 35... Ne6 {[%clk 0:00:32.1]} 36. Qh4
{[%clk 0:00:43.5]} 36... Qc3 {[%clk 0:00:25]} 37. Rb1 {[%clk 0:00:30.3]} 37...
g5 {[%clk 0:00:21.2]} 38. Qh6+ {[%clk 0:00:28.4]} 38... Ke7 {[%clk 0:00:22.6]}
39. Rxb7 {[%clk 0:00:27.1]} 39... Rh8 {[%clk 0:00:23.9]} 0-1

[Event "*** Titled Tuesday Blitz"]
[Site "Chess.com"]
[Date "2018.07.03"]
[Round "7"]
[White "EndgameGrinder"]
[Black "Drags95"]
[Result "0-1"]
[WhiteElo "2457"]
[BlackElo "2609"]
[TimeControl "180+2"]
[EndTime "14:31:13 PDT"]
[Termination "Drags95 won by resignation"]

1. e4 {[%clk 0:03:01.9]} 1... e5 {[%clk 0:02:57.7]} 2. Nf3 {[%clk 0:03:01.7]}
2... Nc6 {[%clk 0:02:59]} 3. d4 {[%clk 0:03:02.9]} 3... exd4 {[%clk 0:02:59.1]}
4. Nxd4 {[%clk 0:03:04.8]} 4... Qf6 {[%clk 0:02:50.1]} 5. Be3 {[%clk 0:03:02.2]}
5... Bc5 {[%clk 0:02:47.8]} 6. c3 {[%clk 0:03:03.4]} 6... Nge7 {[%clk
0:02:39.7]} 7. g3 {[%clk 0:03:04.5]} 7... Qg6 {[%clk 0:02:31.2]} 8. Bg2 {[%clk
0:03:03.9]} 8... Nxd4 {[%clk 0:02:00]} 9. cxd4 {[%clk 0:02:54.8]} 9... Bb6
{[%clk 0:02:01.2]} 10. Nc3 {[%clk 0:02:55]} 10... d6 {[%clk 0:02:02.6]} 11. O-O
{[%clk 0:02:53.7]} 11... h5 {[%clk 0:02:03.8]} 12. h4 {[%clk 0:02:52.3]} 12...
Bg4 {[%clk 0:01:58.8]} 13. Qa4+ {[%clk 0:02:50.7]} 13... Bd7 {[%clk 0:01:59.5]}
14. Qb3 {[%clk 0:02:49.5]} 14... O-O {[%clk 0:01:57.2]} 15. a4 {[%clk 0:02:44]}
15... a5 {[%clk 0:01:56.1]} 16. Rae1 {[%clk 0:02:25.2]} 16... Kh8 {[%clk
0:01:57]} 17. Kh2 {[%clk 0:01:40.2]} 17... f5 {[%clk 0:01:51.6]} 18. Bg5 {[%clk
0:01:41.3]} 18... Nc6 {[%clk 0:01:48.1]} 19. d5 {[%clk 0:01:28.9]} 19... Nd4
{[%clk 0:01:39.9]} 20. Qd1 {[%clk 0:01:29.5]} 20... fxe4 {[%clk 0:01:18.1]} 21.
Nxe4 {[%clk 0:00:56]} 21... Rae8 {[%clk 0:01:17.8]} 22. Be3 {[%clk 0:00:27.9]}
22... Rxe4 {[%clk 0:01:00.2]} 23. Bxe4 {[%clk 0:00:29.8]} 23... Qxe4 {[%clk
0:01:01.6]} 24. Bxd4 {[%clk 0:00:30.5]} 24... Qxd4 {[%clk 0:00:59.9]} 25. Qxh5+
{[%clk 0:00:31.6]} 25... Kg8 {[%clk 0:01:01.1]} 26. f4 {[%clk 0:00:16.8]} 26...
Rf7 {[%clk 0:00:45.8]} 27. Re2 {[%clk 0:00:14.2]} 27... Qxa4 {[%clk 0:00:40.2]}
28. Rfe1 {[%clk 0:00:14.3]} 28... Qd4 {[%clk 0:00:31.7]} 29. Qg5 {[%clk
0:00:14.5]} 29... Qf6 {[%clk 0:00:32]} 30. Qxf6 {[%clk 0:00:11]} 30... Rxf6
{[%clk 0:00:32.1]} 31. Re7 {[%clk 0:00:10.4]} 31... Rf7 {[%clk 0:00:33.4]} 32.
Kg2 {[%clk 0:00:10.3]} 32... Bd4 {[%clk 0:00:34.4]} 33. b3 {[%clk 0:00:10.2]}
33... Bf6 {[%clk 0:00:33.7]} 34. Rxf7 {[%clk 0:00:11.3]} 34... Kxf7 {[%clk
0:00:35.6]} 35. Kf3 {[%clk 0:00:13]} 35... b5 {[%clk 0:00:36.7]} 36. g4 {[%clk
0:00:14]} 36... a4 {[%clk 0:00:37.1]} 37. bxa4 {[%clk 0:00:13.8]} 37... bxa4
{[%clk 0:00:39]} 38. g5 {[%clk 0:00:15.4]} 38... Bb2 {[%clk 0:00:39.8]} 39. h5
{[%clk 0:00:14.9]} 39... a3 {[%clk 0:00:41.1]} 40. g6+ {[%clk 0:00:04.9]} 40...
Kf6 {[%clk 0:00:42.2]} 0-1

[Event "*** Titled Tuesday Blitz"]
[Site "Chess.com"]
[Date "2018.07.03"]
[Round "7"]
[White "BillForster"]
[Black "Morshynska"]
[Result "0-1"]
[WhiteElo "1705"]
[BlackElo "2144"]
[TimeControl "180+2"]
[EndTime "14:31:20 PDT"]
[Termination "Morshynska won on time"]

1. d4 {[%clk 0:03:01.9]} 1... Nf6 {[%clk 0:02:56]} 2. c4 {[%clk 0:03:01.6]} 2...
e6 {[%clk 0:02:56.2]} 3. g3 {[%clk 0:02:59.8]} 3... Bb4+ {[%clk 0:02:55.1]} 4.
Bd2 {[%clk 0:02:53]} 4... Qe7 {[%clk 0:02:55.5]} 5. Bg2 {[%clk 0:02:50.7]} 5...
Nc6 {[%clk 0:02:53.9]} 6. Nf3 {[%clk 0:02:48.4]} 6... Bxd2+ {[%clk 0:02:37.6]}
7. Qxd2 {[%clk 0:02:41]} 7... Ne4 {[%clk 0:02:32.7]} 8. Qc2 {[%clk 0:02:38.3]}
8... Qb4+ {[%clk 0:02:29.4]} 9. Kf1 {[%clk 0:02:12.8]} 9... d5 {[%clk
0:02:05.2]} 10. b3 {[%clk 0:01:40.3]} 10... O-O {[%clk 0:02:01.1]} 11. a3 {[%clk
0:01:37.2]} 11... Qe7 {[%clk 0:01:57.1]} 12. e3 {[%clk 0:01:21.1]} 12... Bd7
{[%clk 0:01:48.1]} 13. Nfd2 {[%clk 0:01:14.1]} 13... f5 {[%clk 0:01:44.7]} 14.
f3 {[%clk 0:01:06.8]} 14... Nf6 {[%clk 0:01:31.4]} 15. Kf2 {[%clk 0:01:06.5]}
15... Rad8 {[%clk 0:01:13.6]} 16. Rf1 {[%clk 0:01:03.2]} 16... Kh8 {[%clk
0:01:11.3]} 17. Nc3 {[%clk 0:00:58.7]} 17... Bc8 {[%clk 0:01:05.8]} 18. Rae1
{[%clk 0:00:56.7]} 18... Qxa3 {[%clk 0:00:41]} 19. Kg1 {[%clk 0:00:54.4]} 19...
Qe7 {[%clk 0:00:37.3]} 20. c5 {[%clk 0:00:43.7]} 20... e5 {[%clk 0:00:35.5]} 21.
Nb5 {[%clk 0:00:25.3]} 21... a6 {[%clk 0:00:31.9]} 22. dxe5 {[%clk 0:00:21.5]}
22... Qxe5 {[%clk 0:00:22.9]} 23. Nd4 {[%clk 0:00:18.3]} 23... Bd7 {[%clk
0:00:20.7]} 24. b4 {[%clk 0:00:16.8]} 24... Rfe8 {[%clk 0:00:20.6]} 25. b5
{[%clk 0:00:14.9]} 25... axb5 {[%clk 0:00:22.5]} 26. Nxb5 {[%clk 0:00:14.6]}
26... Bc8 {[%clk 0:00:23.3]} 27. f4 {[%clk 0:00:13.6]} 27... Qe7 {[%clk
0:00:23.1]} 28. Nb3 {[%clk 0:00:12.3]} 28... Ne4 {[%clk 0:00:23]} 29. N3d4
{[%clk 0:00:11.6]} 29... Nxd4 {[%clk 0:00:21.9]} 30. Nxd4 {[%clk 0:00:10.7]}
30... h6 {[%clk 0:00:21.9]} 31. c6 {[%clk 0:00:10]} 31... b6 {[%clk 0:00:20.3]}
32. Qb3 {[%clk 0:00:07.4]} 32... Ba6 {[%clk 0:00:19.2]} 33. Rf3 {[%clk 0:00:06]}
33... Bc4 {[%clk 0:00:20]} 34. Qc2 {[%clk 0:00:04.8]} 34... Ra8 {[%clk
0:00:20.6]} 35. g4 {[%clk 0:00:03.4]} 35... Ra2 {[%clk 0:00:21]} 0-1

[Event "*** Titled Tuesday Blitz"]
[Site "Chess.com"]
[Date "2018.07.03"]
[Round "7"]
[White "SergeiAza"]
[Black "The_Unbeatable_One"]
[Result "1-0"]
[WhiteElo "2690"]
[BlackElo "2638"]
[TimeControl "180+2"]
[EndTime "14:31:21 PDT"]
[Termination "SergeiAza won by resignation"]

1. e4 {[%clk 0:03:01.9]} 1... e5 {[%clk 0:03:00.6]} 2. Nf3 {[%clk 0:03:01.9]}
2... Nc6 {[%clk 0:03:01.6]} 3. Bb5 {[%clk 0:03:02.8]} 3... a6 {[%clk 0:03:02.5]}
4. Ba4 {[%clk 0:03:03.3]} 4... Nf6 {[%clk 0:03:03.7]} 5. O-O {[%clk 0:03:04.8]}
5... Be7 {[%clk 0:03:04.9]} 6. Re1 {[%clk 0:03:06.3]} 6... b5 {[%clk 0:03:06]}
7. Bb3 {[%clk 0:03:07.9]} 7... d6 {[%clk 0:03:07.6]} 8. c3 {[%clk 0:03:08.7]}
8... O-O {[%clk 0:03:09.1]} 9. h3 {[%clk 0:03:10.3]} 9... Nb8 {[%clk 0:03:09.9]}
10. d4 {[%clk 0:03:10.9]} 10... Nbd7 {[%clk 0:03:11.1]} 11. Nbd2 {[%clk
0:03:12.5]} 11... Bb7 {[%clk 0:03:12.2]} 12. Bc2 {[%clk 0:03:14.1]} 12... Re8
{[%clk 0:03:13]} 13. Nf1 {[%clk 0:03:15.4]} 13... Bf8 {[%clk 0:03:13.8]} 14. Ng3
{[%clk 0:03:16.9]} 14... g6 {[%clk 0:03:15.3]} 15. a4 {[%clk 0:03:18.4]} 15...
c5 {[%clk 0:03:15.6]} 16. d5 {[%clk 0:03:20]} 16... c4 {[%clk 0:03:17.1]} 17.
Bg5 {[%clk 0:03:20.9]} 17... Be7 {[%clk 0:03:17.7]} 18. Qd2 {[%clk 0:02:59.3]}
18... Nc5 {[%clk 0:03:16.6]} 19. Bh6 {[%clk 0:02:45.5]} 19... Nfd7 {[%clk
0:03:15.6]} 20. Rf1 {[%clk 0:02:26.6]} 20... bxa4 {[%clk 0:03:15.4]} 21. Nh2
{[%clk 0:02:10.1]} 21... Nb3 {[%clk 0:03:15.1]} 22. Bxb3 {[%clk 0:02:10.7]}
22... axb3 {[%clk 0:03:15.9]} 23. f4 {[%clk 0:02:12.1]} 23... a5 {[%clk
0:03:13.6]} 24. f5 {[%clk 0:02:07.1]} 24... a4 {[%clk 0:03:05]} 25. Ng4 {[%clk
0:02:06.5]} 25... Nf6 {[%clk 0:02:59.8]} 26. fxg6 {[%clk 0:01:24.4]} 26... hxg6
{[%clk 0:02:05.8]} 27. Qf2 {[%clk 0:01:12]} 27... Kh7 {[%clk 0:02:01.6]} 28. Bg5
{[%clk 0:01:00]} 28... Nxg4 {[%clk 0:01:52.9]} 29. Qxf7+ {[%clk 0:01:00.1]}
29... Kh8 {[%clk 0:01:53.7]} 30. Nh5 {[%clk 0:00:44.4]} 30... gxh5 {[%clk
0:00:54.4]} 31. Qxh5+ {[%clk 0:00:43.2]} 31... Kg8 {[%clk 0:00:35.1]} 32. Qg6+
{[%clk 0:00:43.6]} 32... Kh8 {[%clk 0:00:36]} 33. Rf7 {[%clk 0:00:31.2]} 33...
Qb6+ {[%clk 0:00:19]} 34. Kh1 {[%clk 0:00:29.8]} 34... Nf2+ {[%clk 0:00:10.7]}
35. Kh2 {[%clk 0:00:26.9]} 35... Ng4+ {[%clk 0:00:11.2]} 36. hxg4 {[%clk
0:00:24.2]} 1-0

[Event "*** Titled Tuesday Blitz"]
[Site "Chess.com"]
[Date "2018.07.03"]
[Round "7"]
[White "Goala"]
[Black "kungmongmanh"]
[Result "0-1"]
[WhiteElo "2416"]
[BlackElo "2488"]
[TimeControl "180+2"]
[EndTime "14:31:30 PDT"]
[Termination "kungmongmanh won by resignation"]

1. d4 {[%clk 0:03:01.9]} 1... Nf6 {[%clk 0:03:00.4]} 2. c4 {[%clk 0:03:03.1]}
2... e6 {[%clk 0:03:01.5]} 3. Nf3 {[%clk 0:03:04.1]} 3... Bb4+ {[%clk
0:03:02.1]} 4. Bd2 {[%clk 0:03:05.6]} 4... Qe7 {[%clk 0:03:03.1]} 5. g3 {[%clk
0:03:06.8]} 5... O-O {[%clk 0:03:03.8]} 6. Nc3 {[%clk 0:03:08.4]} 6... Bxc3
{[%clk 0:03:03.9]} 7. Bxc3 {[%clk 0:03:09.1]} 7... Ne4 {[%clk 0:03:05.4]} 8. Rc1
{[%clk 0:03:10.5]} 8... Nxc3 {[%clk 0:03:04.4]} 9. Rxc3 {[%clk 0:03:12.4]} 9...
d6 {[%clk 0:03:05.8]} 10. Bg2 {[%clk 0:03:13.3]} 10... e5 {[%clk 0:03:07.1]} 11.
O-O {[%clk 0:03:12]} 11... c6 {[%clk 0:03:00.5]} 12. Qc2 {[%clk 0:02:59.9]}
12... h6 {[%clk 0:02:53.1]} 13. Rd1 {[%clk 0:02:49.2]} 13... Re8 {[%clk
0:02:52.3]} 14. Re3 {[%clk 0:02:45.5]} 14... Nd7 {[%clk 0:02:50.5]} 15. dxe5
{[%clk 0:02:42.4]} 15... dxe5 {[%clk 0:02:50.9]} 16. Bh3 {[%clk 0:02:43.6]}
16... f6 {[%clk 0:02:42.6]} 17. Nh4 {[%clk 0:02:37]} 17... Nb6 {[%clk
0:02:19.5]} 18. Bxc8 {[%clk 0:02:15.2]} 18... Rexc8 {[%clk 0:02:14.9]} 19. Nf5
{[%clk 0:02:13.5]} 19... Qe6 {[%clk 0:01:47.5]} 20. Red3 {[%clk 0:01:48]} 20...
Re8 {[%clk 0:01:20]} 21. Nd6 {[%clk 0:01:40]} 21... Re7 {[%clk 0:01:17.3]} 22.
b3 {[%clk 0:01:16]} 22... Rd7 {[%clk 0:01:04.5]} 23. c5 {[%clk 0:01:10.8]} 23...
Nd5 {[%clk 0:01:03.8]} 24. a3 {[%clk 0:01:11.6]} 24... Ne7 {[%clk 0:00:48.6]}
25. b4 {[%clk 0:00:57.3]} 25... b6 {[%clk 0:00:48.5]} 26. h4 {[%clk 0:00:45.9]}
26... b5 {[%clk 0:00:47.2]} 27. h5 {[%clk 0:00:33]} 27... a5 {[%clk 0:00:47.8]}
28. Kg2 {[%clk 0:00:28.5]} 28... axb4 {[%clk 0:00:47.1]} 29. axb4 {[%clk
0:00:30.4]} 29... Ra2 {[%clk 0:00:43.3]} 30. Qc3 {[%clk 0:00:23]} 30... Rxe2
{[%clk 0:00:33.8]} 31. Nxb5 {[%clk 0:00:23.7]} 31... Nd5 {[%clk 0:00:15.1]} 32.
Qb3 {[%clk 0:00:20.4]} 32... Kh8 {[%clk 0:00:09.5]} 33. Nc3 {[%clk 0:00:19.1]}
33... Nf4+ {[%clk 0:00:08.3]} 34. gxf4 {[%clk 0:00:15.3]} 34... Qxb3 {[%clk
0:00:09.3]} 35. Rxd7 {[%clk 0:00:11.6]} 35... Qxc3 {[%clk 0:00:09.6]} 36. fxe5
{[%clk 0:00:08.6]} 36... Qxe5 {[%clk 0:00:10.1]} 37. R1d3 {[%clk 0:00:08.2]}
37... Qe4+ {[%clk 0:00:10.1]} 38. Rf3 {[%clk 0:00:08.1]} 38... Qg4+ {[%clk
0:00:10.5]} 39. Rg3 {[%clk 0:00:08.8]} 39... Qxd7 {[%clk 0:00:11.6]} 0-1

[Event "*** Titled Tuesday Blitz"]
[Site "Chess.com"]
[Date "2018.07.03"]
[Round "7"]
[White "GM_dmitrij"]
[Black "Dr-Bassem"]
[Result "0-1"]
[WhiteElo "2803"]
[BlackElo "2727"]
[TimeControl "180+2"]
[EndTime "14:31:34 PDT"]
[Termination "Dr-Bassem won by resignation"]

1. e4 {[%clk 0:03:01.9]} 1... e5 {[%clk 0:02:53.7]} 2. Nf3 {[%clk 0:03:02.7]}
2... Nc6 {[%clk 0:02:54.8]} 3. Bb5 {[%clk 0:03:03.1]} 3... a6 {[%clk 0:02:55.9]}
4. Ba4 {[%clk 0:03:03.6]} 4... Nf6 {[%clk 0:02:57]} 5. O-O {[%clk 0:03:04.4]}
5... Be7 {[%clk 0:02:57.6]} 6. d3 {[%clk 0:03:05.7]} 6... d6 {[%clk 0:02:57.8]}
7. c4 {[%clk 0:03:03.7]} 7... O-O {[%clk 0:02:58.7]} 8. Nc3 {[%clk 0:03:04.3]}
8... Nd7 {[%clk 0:02:57.5]} 9. Be3 {[%clk 0:03:04.2]} 9... Bf6 {[%clk
0:02:56.5]} 10. Nd5 {[%clk 0:03:04.4]} 10... Nd4 {[%clk 0:02:51]} 11. Nxf6+
{[%clk 0:02:14]} 11... Qxf6 {[%clk 0:02:50.5]} 12. Nxd4 {[%clk 0:02:07.9]} 12...
exd4 {[%clk 0:02:52.4]} 13. Bxd7 {[%clk 0:02:05]} 13... dxe3 {[%clk 0:02:26.9]}
14. Bxc8 {[%clk 0:01:50.8]} 14... Raxc8 {[%clk 0:02:28.1]} 15. fxe3 {[%clk
0:01:50.9]} 15... Qxb2 {[%clk 0:02:28.8]} 16. Rb1 {[%clk 0:01:31.1]} 16... Qxa2
{[%clk 0:02:29.2]} 17. Rxb7 {[%clk 0:01:31.5]} 17... Qa5 {[%clk 0:02:30.7]} 18.
Qa1 {[%clk 0:01:18.6]} 18... Qd2 {[%clk 0:02:24.8]} 19. Qd4 {[%clk 0:01:10.6]}
19... Rb8 {[%clk 0:02:24.4]} 20. Rbb1 {[%clk 0:00:32.2]} 20... c5 {[%clk
0:01:46.7]} 21. Qxd6 {[%clk 0:00:33]} 21... Qxe3+ {[%clk 0:01:47.7]} 22. Kh1
{[%clk 0:00:33.8]} 22... Rbd8 {[%clk 0:01:48.6]} 23. Qxa6 {[%clk 0:00:27.1]}
23... Qxd3 {[%clk 0:01:49.9]} 24. e5 {[%clk 0:00:23.9]} 24... Rfe8 {[%clk
0:01:41]} 25. h3 {[%clk 0:00:09.8]} 25... Rxe5 {[%clk 0:01:39.6]} 26. Qb6 {[%clk
0:00:11.1]} 26... Rde8 {[%clk 0:01:36.3]} 27. Qa6 {[%clk 0:00:10.1]} 27... h6
{[%clk 0:01:30.6]} 28. Rbd1 {[%clk 0:00:10.9]} 28... Qe2 {[%clk 0:01:25.9]} 29.
Qb5 {[%clk 0:00:09.5]} 29... Rg5 {[%clk 0:01:18.3]} 30. Rg1 {[%clk 0:00:10.1]}
30... Rxg2 {[%clk 0:00:47.7]} 31. Qxe8+ {[%clk 0:00:08.7]} 31... Qxe8 {[%clk
0:00:49.6]} 32. Rxg2 {[%clk 0:00:10.1]} 32... Qe4 {[%clk 0:00:50.6]} 33. Rc1
{[%clk 0:00:07.3]} 33... Qe3 {[%clk 0:00:48.6]} 34. Rcc2 {[%clk 0:00:07]} 34...
Qxh3+ {[%clk 0:00:49.1]} 35. Kg1 {[%clk 0:00:08.8]} 35... Qe3+ {[%clk
0:00:49.8]} 36. Kf1 {[%clk 0:00:09.6]} 36... g5 {[%clk 0:00:48.2]} 37. Rge2
{[%clk 0:00:09.3]} 37... Qd3 {[%clk 0:00:48.4]} 38. Kg2 {[%clk 0:00:10]} 38...
Kg7 {[%clk 0:00:48.5]} 39. Red2 {[%clk 0:00:11]} 39... Qe4+ {[%clk 0:00:49]} 40.
Kg1 {[%clk 0:00:12.5]} 40... h5 {[%clk 0:00:48.5]} 41. Re2 {[%clk 0:00:12.2]}
41... Qd4+ {[%clk 0:00:49.7]} 42. Kf1 {[%clk 0:00:13]} 42... h4 {[%clk
0:00:49.4]} 43. Rg2 {[%clk 0:00:14.1]} 43... Kg6 {[%clk 0:00:48.2]} 44. Ke1
{[%clk 0:00:13.7]} 44... h3 {[%clk 0:00:46.1]} 45. Rg3 {[%clk 0:00:15]} 45...
Qe5+ {[%clk 0:00:44.9]} 46. Kf2 {[%clk 0:00:15.4]} 46... Qf4+ {[%clk 0:00:45.9]}
47. Rf3 {[%clk 0:00:15.5]} 47... Qh2+ {[%clk 0:00:46.9]} 0-1

[Event "*** Titled Tuesday Blitz"]
[Site "Chess.com"]
[Date "2018.07.03"]
[Round "7"]
[White "Grebeniuk-S"]
[Black "26andrej26"]
[Result "0-1"]
[WhiteElo "2449"]
[BlackElo "2407"]
[TimeControl "180+2"]
[EndTime "14:31:43 PDT"]
[Termination "26andrej26 won by checkmate"]

1. d4 {[%clk 0:03:01.9]} 1... Nf6 {[%clk 0:03:00.9]} 2. Nf3 {[%clk 0:03:02.8]}
2... g6 {[%clk 0:03:02.4]} 3. Bg5 {[%clk 0:03:04.1]} 3... Bg7 {[%clk 0:03:04.3]}
4. Nbd2 {[%clk 0:03:05.5]} 4... d5 {[%clk 0:03:05.3]} 5. e3 {[%clk 0:03:06.4]}
5... Nbd7 {[%clk 0:03:06.7]} 6. Be2 {[%clk 0:03:05.9]} 6... h6 {[%clk
0:03:06.9]} 7. Bh4 {[%clk 0:03:06.8]} 7... c6 {[%clk 0:03:04.4]} 8. O-O {[%clk
0:03:06.1]} 8... Qb6 {[%clk 0:03:05.2]} 9. b3 {[%clk 0:02:51.4]} 9... O-O {[%clk
0:03:01.5]} 10. c4 {[%clk 0:02:52.8]} 10... g5 {[%clk 0:02:50.6]} 11. Bg3 {[%clk
0:02:53.5]} 11... Ne4 {[%clk 0:02:52]} 12. Nxe4 {[%clk 0:02:48.8]} 12... dxe4
{[%clk 0:02:53]} 13. Nd2 {[%clk 0:02:50.4]} 13... f5 {[%clk 0:02:53.1]} 14. f4
{[%clk 0:02:42.3]} 14... exf3 {[%clk 0:02:51.9]} 15. Nxf3 {[%clk 0:02:36.5]}
15... e5 {[%clk 0:02:53]} 16. Kh1 {[%clk 0:02:09.8]} 16... f4 {[%clk 0:02:47]}
17. exf4 {[%clk 0:01:56.7]} 17... gxf4 {[%clk 0:02:42.3]} 18. Bf2 {[%clk
0:01:55.5]} 18... e4 {[%clk 0:02:43.7]} 19. d5 {[%clk 0:01:39.5]} 19... e3
{[%clk 0:02:43.4]} 20. Bh4 {[%clk 0:01:39]} 20... Nc5 {[%clk 0:02:15.4]} 21. Be7
{[%clk 0:01:07.4]} 21... Rf7 {[%clk 0:02:15.8]} 22. d6 {[%clk 0:01:08.4]} 22...
Bd7 {[%clk 0:01:54.9]} 23. Nh4 {[%clk 0:00:53.2]} 23... Ne4 {[%clk 0:01:50]} 24.
Qc2 {[%clk 0:00:52.4]} 24... Nf2+ {[%clk 0:01:12.9]} 25. Kg1 {[%clk 0:00:52.1]}
25... Qc5 {[%clk 0:00:59.4]} 26. Rab1 {[%clk 0:00:33.8]} 26... Qe5 {[%clk
0:00:56.1]} 27. c5 {[%clk 0:00:28.6]} 27... Be6 {[%clk 0:00:41]} 28. b4 {[%clk
0:00:22.5]} 28... Bd5 {[%clk 0:00:37.7]} 29. Nf3 {[%clk 0:00:21.5]} 29... Qe6
{[%clk 0:00:34.2]} 30. Rbc1 {[%clk 0:00:11.2]} 30... Bxa2 {[%clk 0:00:28.9]} 31.
Bc4 {[%clk 0:00:09.5]} 31... Bxc4 {[%clk 0:00:29.8]} 32. Qxc4 {[%clk 0:00:11.3]}
32... Qg4 {[%clk 0:00:19]} 33. Rce1 {[%clk 0:00:05.4]} 33... Re8 {[%clk
0:00:17.7]} 34. Re2 {[%clk 0:00:04.4]} 34... Bf8 {[%clk 0:00:14.9]} 35. Bxf8
{[%clk 0:00:03.6]} 35... Rxf8 {[%clk 0:00:16.7]} 36. b5 {[%clk 0:00:04.6]} 36...
Kh8 {[%clk 0:00:12.9]} 37. bxc6 {[%clk 0:00:05.1]} 37... bxc6 {[%clk 0:00:14.8]}
38. Qd4+ {[%clk 0:00:06.5]} 38... Rg7 {[%clk 0:00:15.7]} 39. Ne1 {[%clk
0:00:05.1]} 39... Qxe2 {[%clk 0:00:15.2]} 40. d7 {[%clk 0:00:05]} 40... Nh3+
{[%clk 0:00:12.8]} 41. Kh1 {[%clk 0:00:02.6]} 41... Qxf1# {[%clk 0:00:14.2]} 0-1